{"text_format":"1","workbook":"xlsx","n_sheets":1,"sheets":["Form"],"not_rendered":{"charts":0,"images":1,"macros":1,"external_links":0,"defined_names":3,"comments":1,"pivot_tables":0},"unopened":[],"bounds":{"document_bytes":16777216,"sheet_cells":100000,"rows_first":2000,"rows_last":500,"rows_between":2000,"halvings":0,"cell_chars":16384,"cell_head_chars":4096},"cells_cut":0,"cells_raw":0,"read":"whole","date_system":"1900"}

{"sheet":"Form","index":0,"n_rows":48,"n_cols":26,"rows_kept":48,"cut":false,"hidden":false,"merged":[[1,2,1,12],[33,18,33,19],[0,2,0,11],[7,2,7,11],[15,18,15,24],[14,11,14,12],[14,9,14,10],[13,2,13,8],[13,9,13,14],[14,13,14,14],[10,8,10,9],[11,10,11,13],[10,10,10,13]]}
[null,null,"WETASKIWIN REGIONAL PUBLIC SCHOOLS",null,null,null,null,null,null,null,null,null,null,null,null,null,null,null,null,"RATES"]
[null,null,"“Inspiring students to become the best they can be.”",null,null,null,null,null,null,null,null,null,null,null,null,null,null,null,"Per km.",0.53]
[null,null,null,null,null,null,null,null,null,null,null,null,null,null,null,null,null,null,"Conference",225]
[null,null,null,null,null,null,null,null,null,null,null,null,null,null,null,null,null,null,"2 hrs",50]
[null,null,null,null,null,null,null,null,null,null,null,null,null,null,null,null,null,null,"4 hrs",100]
[null,null,null,null,null,null,null,null,null,null,null,null,null,null,null,null,null,null,"6 hrs",150]
[null,null,null,null,null,null,null,null,null,null,null,null,null,null,null,null,null,null,"8 hrs ",200]
[null,null,"Trustees Honoraria and Expenses",null,null,null,null,null,null,null,null,null,null,null,null,null,null,null,"10 hrs",250]
[null,null,null,null,null,null,null,null,null,null,null,null,null,null,null,null,null,null,"12 hours",300]
[]
["Trustee:",null,null,null,null,null,null,null,"Date Submitted:"]
[null,null,null,null,null,null,null,null,null,null,"Submit by the 5th of the month."]
[]
["DATE","DESCRIPTION","HONORARIA",null,null,null,null,null,null,"EXPENSES"]
["mm-dd-yy","Meetings-Board/Committees","Up to","Up to ","Up to ","Up to","Up to","Up to ",null,"Travel",null,"Conference per diem",null,"Other"]
[null,"Conferences","2 hrs","4 hrs","6 hrs","8 hrs","10 hrs","12 hrs","total","Km","total",null,"total","Description","total","TOTAL",null,null,"Checkbox Values"]
[null,null,null,null,null,null,null,null,{"$f":"IF(T17=TRUE,$T$4,(IF(U17=TRUE,$T$5,(IF(V17,$T$6,(IF(W17,$T$7,(IF(X17,$T$8,(IF(Y17,$T$9,0)))))))))))","v":0},null,{"$f":"J17*T2","v":0},null,{"$f":"IF(Z17=TRUE,$T$3,0)","v":0},null,null,{"$f":"SUM(I17,M17,K17,O17)","v":0},null,null,"Row 17",false,false,false,false,false,false,false]
[null,null,null,null,null,null,null,null,{"$f":"IF(T18=TRUE,$T$4,(IF(U18=TRUE,$T$5,(IF(V18,$T$6,(IF(W18,$T$7,(IF(X18,$T$8,(IF(Y18,$T$9,0)))))))))))","v":0},null,{"$f":"J18*T2","v":0},null,{"$f":"IF(Z18=TRUE,$T$3,0)","v":0},null,null,{"$f":"SUM(I18,M18,K18,O18)","v":0},null,null,"Row 18",false,false,false,false,false,false,false]
[null,null,null,null,null,null,null,null,0,null,{"$f":"J19*T2","v":0},null,0,null,null,0,null,null,"Row 19",false,false,false,false,false,false,false]
[null,null,null,null,null,null,null,null,0,null,{"$f":"J20*T2","v":0},null,0,null,null,0,null,null,"Row 20",false,false,false,false,false,false,false]
[null,null,null,null,null,null,null,null,0,null,{"$f":"J21*T2","v":0},null,0,null,null,0,null,null,"Row 21",false,false,false,false,false,false,false]
[null,null,null,null,null,null,null,null,0,null,{"$f":"J22*T2","v":0},null,0,null,null,0,null,null,"Row 22",false,false,false,false,false,false,false]
[null,null,null,null,null,null,null,null,0,null,{"$f":"J23*T2","v":0},null,0,null,null,0,null,null,"Row 23",false,false,false,false,false,false,false]
[null,null,null,null,null,null,null,null,0,null,{"$f":"J24*T2","v":0},null,0,null,null,0,null,null,"Row 24",false,false,false,false,false,false,false]
[null,null,null,null,null,null,null,null,0,null,{"$f":"J25*T2","v":0},null,0,null,null,0,null,null,"Row 25",false,false,false,false,false,false,false]
[null,null,null,null,null,null,null,null,0,null,{"$f":"J26*T2","v":0},null,0,null,null,0,null,null,"Row 26",false,false,false,false,false,false,false]
[null,null,null,null,null,null,null,null,0,null,{"$f":"J27*T2","v":0},null,0,null,null,0,null,null,"Row 27",false,false,false,false,false,false,false]
[null,null,null,null,null,null,null,null,0,null,{"$f":"J28*T2","v":0},null,0,null,null,0,null,null,"Row 28",false,false,false,false,false,false,false]
[null,null,null,null,null,null,null,null,0,null,{"$f":"J29*T2","v":0},null,0,null,null,0,null,null,"Row 29",false,false,false,false,false,false,false]
[null,null,null,null,null,null,null,null,0,null,{"$f":"J30*T2","v":0},null,0,null,null,0,null,null,"Row 30",false,false,false,false,false,false,false]
[null,null,null,null,null,null,null,null,0,null,{"$f":"J31*T2","v":0},null,0,null,null,0,null,null,"Row 31",false,false,false,false,false,false,false]
[null,null,null,null,null,null,null,null,0,null,{"$f":"J32*T2","v":0},null,0,null,null,0,null,null,"Row 32",false,false,false,false,false,false,false]
[null,null,null,null,null,"  Total",null,null,{"$f":"SUM(I17:I32)","v":0},null,{"$f":"SUM(K17:K32)","v":0},null,{"$f":"SUM(M17:M32)","v":0},null,{"$f":"SUM(O17:O32)","v":0},{"$f":"SUM(P17:P32)","v":0}]
[null,null,null,null,null,null,null,null,null,null,null,null,null,null,null,null,null,null,"Trustees"]
[null,null,null,null,null,null,null,null,null,null,null,null,null,null,null,null,null,null,"Column1"]
[null,null,null,null,null,null,null,null,null,"Verified By:",null,null,null,null,null,null,null,null,"Axelsen - 0431"]
[null,"Trustee Signature",null,null,null,null,null,null,null,null,"Chairman",null,null,null,null,null,null,null,"Becker - 0442"]
[null,null,null,null,null,null,null,null,null,null,null,null,null,null,null,null,null,null,"Ermineskin - 0430"]
[null,null,null,null,null,null,null,null,null,null,null,null,null,null,null,null,null,null,"Gursky - 0439"]
[null,null,null,null,null,null,null,null,null,null,null,null,null,null,null,null,null,null,"Johnson - 0410"]
[null,"Date signed",null,null,null,null,null,null,null,null,"Vice Chair",null,null,null,null,null,null,null,"Pettifor - 0434"]
[null,null,null,null,null,null,null,null,null,null,null,null,null,null,null,null,null,null,"Ware - 0441"]
[null,null,null,null,null,null,null,null,null,null,null,null,null,null,null,null,null,null,"Peters- 435"]
[null,"Budget Codes"]
[null,"Honoraria - 2.290.410.80.trustee number"]
[null,"Travel and Subsistence - 2.570.415.80.trustee number"]
[null,"Dues and Fees - 2.575.410.80.trustee number"]
[null,"Supplies - 2.510.410.80.trustee number"]